fUSD/lending_fUSD_20250610
["ID","MTS","AMOUNT","RATE_DAILY","PERIOD"]
[365210444,1749535837723,-592.66,0.00016602,2]
[365210446,1749535837732,-490.0,0.00016602,2]
[365210448,1749535837742,-521.34561872,0.00016602,2]
[365210450,1749535837751,-490.0,0.00016602,2]
[365210452,1749535837760,-490.0,0.00016602,2]
[365210454,1749535837770,-531.5,0.00016602,2]
[365210456,1749535837779,-540.0,0.00016602,2]
[365210458,1749535837789,-490.0,0.00016602,2]
[365210460,1749535837798,-490.0,0.00016602,2]
[365210462,1749535837808,-891.1,0.00016602,2]
[365210464,1749535837818,-490.0,0.00016602,2]
[365210466,1749535837828,-490.0,0.00016602,2]
[365210468,1749535837837,-167.69,0.00016626,2]
[365210470,1749535837847,-322.86,0.00016676,2]
[365210473,1749535837867,-500.0,0.0001669,2]
[365210475,1749535837880,-500.0,0.00016694,2]
[365210477,1749535837891,-500.0,0.00016704,2]
[365210480,1749535837901,-502.5313804,0.00016704,2]
[365210482,1749535837912,-238.0,0.00016724,3]
[365210484,1749535837922,-150.0,0.00016736,2]
[365210486,1749535837933,-163.2,0.00016767,2]
[365210488,1749535837945,-490.0,0.00016767,2]
[365210490,1749535837955,-614.43,0.00016767,2]
[365210492,1749535837965,-214.85672707,0.00016767,2]
[365210494,1749535837975,-341.06,0.00016767,2]
[365210496,1749535837986,-490.0,0.00016767,2]
[365210498,1749535837996,-490.0,0.00016767,2]
[365210500,1749535838007,-490.0,0.00016767,2]
[365210503,1749535838017,-169.91,0.00016767,2]
[365210505,1749535838026,-490.0,0.00016767,2]
[365210507,1749535838036,-490.0,0.00016767,2]
[365210509,1749535838047,-605.81,0.00016767,2]
[365210511,1749535838058,-490.0,0.00016767,2]
[365210513,1749535838068,-490.0,0.00016767,2]
[365210515,1749535838078,-490.0,0.00016767,2]
[365210517,1749535838087,-490.0,0.00016767,2]
[365210519,1749535838098,-386.79,0.00016767,2]
[365210521,1749535838112,-490.0,0.00016767,2]
[365210523,1749535838122,-532.86,0.00016767,2]
[365210525,1749535838132,-490.0,0.00016767,2]
[365210527,1749535838141,-490.0,0.00016767,2]
[365210530,1749535838151,-490.0,0.00016767,2]
[365210532,1749535838160,-490.0,0.00016767,2]
[365210534,1749535838170,-285.36935907,0.00016767,2]
[365210536,1749535838181,-480.0,0.00016767,2]
[365210538,1749535838191,-490.0,0.00016767,2]
[365210540,1749535838200,-491.50860523,0.00016767,2]
[365210542,1749535838210,-490.0,0.00016767,2]
[365210544,1749535838219,-1227.24,0.00016767,2]
[365210546,1749535838229,-490.0,0.00016767,2]
[365210548,1749535838238,-315.32747987,0.00016767,2]
[365210550,1749535838248,-490.0,0.00016767,2]
[365210552,1749535838258,-553.14,0.00016767,2]
[365210554,1749535838268,-509.02,0.00016767,2]
[365210556,1749535838278,-537.96,0.00016767,2]
[365210558,1749535838288,-490.0,0.00016767,2]
[365210561,1749535838298,-490.0,0.00016767,2]
[365210563,1749535838308,-490.0,0.00016767,2]
[365210564,1749535838318,-490.0,0.00016767,2]
[365210565,1749535838328,-490.0,0.00016767,2]
[365210566,1749535838337,-490.0,0.00016767,2]
[365210567,1749535838347,-490.0,0.00016767,2]
[365210568,1749535838357,-490.0,0.00016767,2]
[365210569,1749535838367,-613.87,0.00016767,2]
[365210570,1749535838377,-683.88,0.00016767,2]
[365210571,1749535838388,-490.0,0.00016767,2]
[365210572,1749535838397,-480.0,0.00016767,2]
[365210574,1749535838407,-480.0,0.00016767,2]
[365210576,1749535838417,-490.0,0.00016767,2]
[365210578,1749535838426,-490.0,0.00016767,2]
[365210580,1749535838436,-490.0,0.00016767,2]
[365210582,1749535838446,-778.26,0.00016767,2]
[365210584,1749535838456,-605.59,0.00016767,2]
[365210587,1749535838466,-490.0,0.00016767,2]
[365210589,1749535838475,-490.0,0.00016767,2]
[365210591,1749535838485,-490.0,0.00016767,2]
[365210593,1749535838494,-490.0,0.00016767,2]
[365210595,1749535838504,-490.0,0.00016767,2]
[365210597,1749535838513,-480.0,0.00016767,2]
[365210598,1749535838523,-490.0,0.00016767,2]
[365210600,1749535838534,-490.0,0.00016767,2]
[365210602,1749535838543,-490.0,0.00016767,2]
[365210604,1749535838553,-490.0,0.00016767,2]
[365210606,1749535838562,-365.68,0.00016767,2]
[365210608,1749535838572,-490.0,0.00016767,2]
[365210610,1749535838582,-653.55,0.00016767,2]
[365210612,1749535838592,-480.0,0.00016767,2]
[365210614,1749535838601,-490.0,0.00016767,2]
[365210616,1749535838611,-709.5,0.00016767,2]
[365210618,1749535838621,-490.0,0.00016767,2]
[365210620,1749535838630,-490.0,0.00016767,2]
[365210622,1749535838640,-541.81,0.00016767,2]
[365210624,1749535838649,-490.0,0.00016767,2]
[365210626,1749535838659,-490.0,0.00016767,2]
[365210628,1749535838669,-1386.46,0.00016767,2]
[365210630,1749535838679,-490.0,0.00016767,2]
[365210633,1749535838689,-657.87,0.00016767,2]
[365210635,1749535838699,-579.14,0.00016767,2]
[365210637,1749535838708,-490.0,0.00016767,2]
[365210639,1749535838718,-490.0,0.00016767,2]
[365210641,1749535838727,-490.0,0.00016767,2]
[365210643,1749535838736,-162.79,0.00016767,2]
[365210645,1749535838746,-490.0,0.00016767,2]
[365210647,1749535838755,-260.14,0.00016767,2]
[365210649,1749535838765,-490.0,0.00016767,2]
[365210651,1749535838775,-490.0,0.00016767,2]
[365210653,1749535838785,-592.66,0.00016767,2]
[365210655,1749535838795,-624.21,0.00016767,2]
[365210657,1749535838805,-553.46,0.00016767,2]
[365210660,1749535838817,-259.09696816,0.00016767,2]
[365210662,1749535838829,-531.5,0.00016767,2]
[365210664,1749535838842,-490.0,0.00016767,2]
[365210666,1749535838852,-490.0,0.00016767,2]
[365210668,1749535838862,-891.1,0.00016767,2]
[365210670,1749535838872,-490.0,0.00016767,2]
[365210672,1749535838881,-1000.0,0.000168,2]
[365210681,1749535838961,-1000.0,0.000168,3]
[365210683,1749535838970,-1943.84466213,0.00016804,2]
[365210685,1749535838979,-2969.99984589,0.00016831,2]
[365210687,1749535838988,-2076.64262834,0.00016834,2]
[365210689,1749535838997,-163.3,0.00016851,2]
[365210691,1749535839007,-163.33,0.00016851,2]
[365210693,1749535839016,-163.33,0.00016851,2]
[365210695,1749535839025,-900.0,0.00016882,2]
[365210697,1749535839035,-833.29909032,0.00016891,2]
[365210699,1749535839044,-151.0,0.00016904,2]
[365210701,1749535839054,-500.0,0.00016904,2]
[365210703,1749535839063,-1957.856,0.00016904,2]
[365210705,1749535839073,-500.0,0.00016904,2]
[365210707,1749535839082,-500.0,0.00016904,2]
[365210709,1749535839090,-560.02106003,0.00016904,2]
[365210711,1749535839101,-668.65185757,0.00016904,2]
[365210713,1749535839113,-207.4,0.00016904,2]
[365210715,1749535839123,-490.0,0.00016931,2]
[365210717,1749535839132,-490.0,0.00016931,2]
[365210719,1749535839143,-490.0,0.00016931,2]
[365210721,1749535839152,-490.0,0.00016931,2]
[365210723,1749535839161,-504.2230727,0.00016931,2]
[365210725,1749535839170,-490.0,0.00016931,2]
[365210727,1749535839181,-490.0,0.00016931,2]
[365210729,1749535839190,-614.08,0.00016931,2]
[365210731,1749535839199,-532.86,0.00016931,2]
[365210733,1749535839208,-490.0,0.00016931,2]
[365210735,1749535839217,-490.0,0.00016931,2]
[365210737,1749535839226,-490.0,0.00016931,2]
[365210739,1749535839236,-490.0,0.00016931,2]
[365210741,1749535839246,-490.0,0.00016931,2]
[365210743,1749535839255,-490.0,0.00016931,2]
[365210745,1749535839266,-1227.24,0.00016931,2]
[365210747,1749535839275,-546.21,0.00016931,2]
[365210749,1749535839284,-490.0,0.00016931,2]
[365210751,1749535839293,-490.0,0.00016931,2]
[365210753,1749535839302,-490.0,0.00016931,2]
[365210755,1749535839311,-480.0,0.00016931,2]
[365210757,1749535839321,-490.0,0.00016931,2]
[365210759,1749535839330,-490.0,0.00016931,2]
[365210761,1749535839339,-490.0,0.00016931,2]
[365210763,1749535839348,-491.1544998,0.00016931,2]
[365210765,1749535839358,-683.88,0.00016931,2]
[365210766,1749535839369,-490.0,0.00016931,2]
[365210768,1749535839378,-490.0,0.00016931,2]
[365210770,1749535839387,-490.0,0.00016931,2]
[365210772,1749535839396,-490.0,0.00016931,2]
[365210774,1749535839405,-778.26,0.00016931,2]
[365210776,1749535839414,-490.0,0.00016931,2]
[365210778,1749535839423,-490.0,0.00016931,2]
[365210780,1749535839432,-490.0,0.00016931,2]
[365210782,1749535839441,-490.0,0.00016931,2]
[365210784,1749535839450,-490.0,0.00016931,2]
[365210786,1749535839459,-490.0,0.00016931,2]
[365210788,1749535839470,-220.97904937,0.00016931,2]
[365210790,1749535839479,-490.0,0.00016931,2]
[365210792,1749535839489,-653.55,0.00016931,2]
[365210794,1749535839498,-709.5,0.00016931,2]
[365210796,1749535839507,-491.03,0.00016931,2]
[365210798,1749535839515,-490.0,0.00016931,2]
[365210800,1749535839524,-541.81,0.00016931,2]
[365210802,1749535839533,-490.0,0.00016931,2]
[365210804,1749535839542,-490.0,0.00016931,2]
[365210806,1749535839552,-1386.46,0.00016931,2]
[365210808,1749535839561,-490.0,0.00016931,2]
[365210810,1749535839572,-657.87,0.00016931,2]
[365210812,1749535839581,-597.22,0.00016931,2]
[365210814,1749535839591,-370.5,0.00016931,2]
[365210816,1749535839600,-490.0,0.00016931,2]
[365210818,1749535839609,-490.0,0.00016931,2]
[365210820,1749535839619,-490.0,0.00016931,2]
[365210823,1749535839629,-490.0,0.00016931,2]
[365210825,1749535839638,-592.66,0.00016931,2]
[365210826,1749535839652,-531.5,0.00016931,2]
[365210828,1749535839662,-490.0,0.00016931,2]
[365210830,1749535839671,-154.96,0.00016931,2]
[365210832,1749535839681,-891.1,0.00016931,2]
[365210834,1749535839690,-490.0,0.00016931,2]
[365210836,1749535839700,-2030.296672,0.00016959,2]
[365210838,1749535839709,-2969.99984582,0.00016959,2]
[365210840,1749535839719,-163.3,0.00016978,2]
[365210842,1749535839728,-2105.41764886,0.00017014,2]
[365210844,1749535839737,-1000.0,0.00017021,2]
[365210847,1749535839747,-1000.0,0.00017021,2]
[365210849,1749535839756,-2076.64262834,0.00017068,2]
[365210851,1749535839766,-1213.87558744,0.00017069,2]
[365210853,1749535839775,-500.0,0.00017094,2]
[365210855,1749535839785,-500.0,0.00017094,2]
[365210857,1749535839795,-490.0,0.00017095,2]
[365210859,1749535839804,-490.0,0.00017095,2]
[365210861,1749535839813,-490.0,0.00017095,2]
[365210863,1749535839822,-490.0,0.00017095,2]
[365210864,1749535839831,-301.13514297,0.00017095,2]
[365210866,1749535839840,-532.86,0.00017095,2]
[365210869,1749535839850,-490.0,0.00017095,2]
[365210870,1749535839859,-490.0,0.00017095,2]
[365210872,1749535839869,-490.0,0.00017095,2]
[365210874,1749535839878,-490.0,0.00017095,2]
[365210876,1749535839887,-490.0,0.00017095,2]
[365210878,1749535839896,-490.0,0.00017095,2]
[365210880,1749535839905,-1227.24,0.00017095,2]
[365210883,1749535839915,-490.0,0.00017095,2]
[365210885,1749535839925,-490.0,0.00017095,2]
[365210887,1749535839934,-490.0,0.00017095,2]
[365210888,1749535839943,-490.0,0.00017095,2]
[365210891,1749535839953,-490.0,0.00017095,2]
[365210893,1749535839963,-407.68,0.00017095,2]
[365210895,1749535839972,-683.88,0.00017095,2]
[365210896,1749535839981,-490.0,0.00017095,2]
[365210899,1749535839990,-490.0,0.00017095,2]
[365210901,1749535840000,-490.0,0.00017095,2]
[365210903,1749535840009,-490.0,0.00017095,2]
[365210905,1749535840018,-778.26,0.00017095,2]
[365210906,1749535840027,-490.0,0.00017095,2]
[365210908,1749535840037,-490.0,0.00017095,2]
[365210910,1749535840046,-490.0,0.00017095,2]
[365210912,1749535840055,-490.0,0.00017095,2]
[365210914,1749535840064,-490.0,0.00017095,2]
[365210916,1749535840074,-490.0,0.00017095,2]
[365210918,1749535840083,-490.0,0.00017095,2]
[365210920,1749535840093,-653.55,0.00017095,2]
[365210922,1749535840104,-709.5,0.00017095,2]
[365210924,1749535840114,-490.0,0.00017095,2]
[365210926,1749535840123,-541.81,0.00017095,2]
[365210928,1749535840133,-490.0,0.00017095,2]
[365210931,1749535840142,-490.0,0.00017095,2]
[365210932,1749535840153,-1386.46,0.00017095,2]
[365210934,1749535840162,-490.0,0.00017095,2]
[365210937,1749535840172,-657.87,0.00017095,2]
[365210938,1749535840182,-490.0,0.00017095,2]
[365210941,1749535840192,-302.25,0.00017095,2]
[365210943,1749535840202,-189.93973361,0.00017095,2]
[365210946,1749535840211,-592.66,0.00017095,2]
[365210949,1749535840221,-531.5,0.00017095,2]
[365210951,1749535840230,-441.32771779,0.00017095,2]
[365210954,1749535840239,-891.1,0.00017095,2]
[365210958,1749535840250,-240.26,0.00017095,2]
[365210961,1749535840259,-152.0,0.00017119,9]
[365210964,1749535840267,-557.99993241,0.00017123,2]
[365211018,1749535840557,-232.53006759,0.00017123,2]
[365211021,1749535840568,-33.71993241,0.00017175,4]
[365211024,1749535840594,-204.28006759,0.00017175,4]
[365211026,1749535840604,-46.65393071,0.00017238,2]
[365211028,1749535840616,-953.34606929,0.00017238,2]
[365211030,1749535840625,-350.89261015,0.00017242,2]
[365211110,1749535841020,-490.0,0.00016438,2]
[365211113,1749535841029,-490.0,0.00016438,2]
[365211116,1749535841039,-2969.99984582,0.00017088,2]
[365211119,1749535841048,-649.10738985,0.00017242,2]
[365211122,1749535841059,-1000.0,0.00017252,2]
[365211125,1749535841069,-490.0,0.0001726,2]
[365211128,1749535841078,-490.0,0.0001726,2]
[365211131,1749535841087,-184.9,0.0001726,2]
[365211133,1749535841096,-490.0,0.0001726,2]
[365211136,1749535841108,-490.0,0.0001726,2]
[365211139,1749535841117,-490.0,0.0001726,2]
[365211142,1749535841126,-490.0,0.0001726,2]
[365211145,1749535841135,-490.0,0.0001726,2]
[365211148,1749535841144,-490.0,0.0001726,2]
[365211151,1749535841154,-490.0,0.0001726,2]
[365211154,1749535841164,-1227.24,0.0001726,2]
[365211157,1749535841173,-214.08,0.0001726,2]
[365211160,1749535841182,-196.6,0.0001726,2]
[365211163,1749535841193,-490.0,0.0001726,2]
[365211166,1749535841202,-490.0,0.0001726,2]
[365211168,1749535841211,-490.0,0.0001726,2]
[365211170,1749535841220,-683.88,0.0001726,2]
[365211172,1749535841230,-490.0,0.0001726,2]
[365211174,1749535841239,-490.0,0.0001726,2]
[365211176,1749535841248,-269.85,0.0001726,2]
[365211178,1749535841258,-778.26,0.0001726,2]
[365211181,1749535841267,-490.0,0.0001726,2]
[365211184,1749535841276,-248.31,0.0001726,2]
[365211187,1749535841286,-595.43,0.0001726,2]
[365211189,1749535841295,-490.0,0.0001726,2]
[365211192,1749535841304,-490.0,0.0001726,2]
[365211195,1749535841314,-266.08489959,0.0001726,2]
[365211198,1749535841324,-490.0,0.0001726,2]
[365211201,1749535841333,-653.55,0.0001726,2]
[365211204,1749535841343,-709.5,0.0001726,2]
[365211207,1749535841352,-490.0,0.0001726,2]
[365211209,1749535841361,-541.81,0.0001726,2]
[365211212,1749535841370,-577.85,0.0001726,2]
[365211215,1749535841380,-544.45730348,0.0001726,2]
[365211218,1749535841389,-1386.46,0.0001726,2]
[365211221,1749535841398,-254.53,0.0001726,2]
[365211224,1749535841408,-657.87,0.0001726,2]
[365211227,1749535841417,-490.0,0.0001726,2]
[365211230,1749535841427,-592.66,0.0001726,2]
[365211233,1749535841437,-531.5,0.0001726,2]
[365211236,1749535841447,-891.1,0.0001726,2]
[365211239,1749535841456,-500.0,0.00017266,2]
[365211242,1749535841466,-2253.4091,0.00017266,2]
[365211245,1749535841475,-1063.89255203,0.00017303,2]
[365211248,1749535841486,-1012.75007631,0.00017303,2]
[365211251,1749535841496,-91.03696488,0.00017334,2]
[365211254,1749535841507,-452.075,0.00017334,2]
[365211258,1749535841520,-93.88803512,0.00017334,2]
[365211260,1749535841530,-344.03314221,0.0001734,2]
[365211269,1749535841568,-276.01448242,0.0001734,2]
[365211274,1749535841579,-190.95237537,0.0001734,2]
[365211277,1749535841588,-590.0,0.0001734,2]
[365211279,1749535841597,-607.46063244,0.0001734,2]
[365211283,1749535841609,-326.64736756,0.0001734,2]
[365211286,1749535841619,-953.45052703,0.0001734,2]
[365211289,1749535841631,-864.87595907,0.0001734,2]
[365211292,1749535841642,-182.6735139,0.0001734,2]
[365211295,1749535841651,-877.9902012,0.0001734,2]
[365211298,1749535841663,-511.1727988,0.0001734,2]
[365211301,1749535841673,-558.0,0.0001734,2]
[365211304,1749535841682,-1256.0,0.0001734,2]
[365211307,1749535841691,-1159.0,0.0001734,2]
[365211310,1749535841700,-4085.0,0.0001734,2]
[365211313,1749535841710,-142.88486588,0.0001734,2]
[365211344,1749535841851,-490.0,0.00016438,2]
[365211347,1749535841861,-490.0,0.00016438,2]
[365211350,1749535841870,-1289.99555988,0.0001734,2]
[365211353,1749535841881,-333.81892786,0.0001734,2]
[365211359,1749535841906,-490.0,0.00016602,2]
[365211362,1749535841915,-2969.99984582,0.00017216,2]
[365211365,1749535841925,-5297.30064638,0.0001734,2]
[365211368,1749535841935,-298.911,0.0001734,2]
[365211371,1749535841946,-986.31,0.0001734,2]
[365211373,1749535841955,-853.0,0.0001734,2]
[365211375,1749535841964,-150.0,0.00017367,2]
[365211377,1749535841973,-150.161,0.00017367,2]
[365211379,1749535841983,-2637.0,0.00017367,2]
[365211381,1749535841993,-945.0,0.00017367,2]
[365211384,1749535842002,-238.56696492,0.00017372,2]
[365211387,1749535842013,-152.0,0.00017375,10]
[365211390,1749535842023,-200.0,0.000174,6]
[365211393,1749535842033,-490.0,0.00017424,2]
[365211396,1749535842043,-490.0,0.00017424,2]
[365211399,1749535842053,-490.0,0.00017424,2]
[365211402,1749535842063,-490.0,0.00017424,2]
[365211406,1749535842072,-490.0,0.00017424,2]
[365211409,1749535842083,-384.46,0.00017424,2]
[365211412,1749535842093,-1227.24,0.00017424,2]
[365211415,1749535842105,-490.0,0.00017424,2]
[365211418,1749535842116,-490.0,0.00017424,2]
[365211421,1749535842125,-490.0,0.00017424,2]
[365211424,1749535842135,-683.88,0.00017424,2]
[365211427,1749535842144,-490.0,0.00017424,2]
[365211430,1749535842155,-778.26,0.00017424,2]
[365211433,1749535842165,-490.0,0.00017424,2]
[365211436,1749535842175,-490.0,0.00017424,2]
[365211439,1749535842185,-490.0,0.00017424,2]
[365211442,1749535842194,-653.55,0.00017424,2]
[365211445,1749535842204,-709.5,0.00017424,2]
[365211448,1749535842214,-490.0,0.00017424,2]
[365211450,1749535842223,-541.81,0.00017424,2]
[365211453,1749535842233,-1386.46,0.00017424,2]
[365211456,1749535842242,-657.87,0.00017424,2]
[365211459,1749535842251,-339.88204647,0.00017424,2]
[365211462,1749535842261,-592.66,0.00017424,2]
[365211465,1749535842270,-531.5,0.00017424,2]
[365211468,1749535842280,-891.1,0.00017424,2]
[365211471,1749535842289,-1121764.8073876,0.000175,2]
[365211699,1749535844391,205.0,0.00015372,2]
[365211903,1749535846506,-490.0,0.00016438,2]
[365211905,1749535846516,-490.0,0.00016438,2]
[365211907,1749535846526,-490.0,0.00016438,2]
[365211909,1749535846536,-490.0,0.00016438,2]
[365211911,1749535846545,-490.0,0.00016602,2]
[365211913,1749535846555,-490.0,0.00016602,2]
[365211915,1749535846564,-327.08343168,0.00016767,2]
[365211917,1749535846574,-1032.19733497,0.00017076,2]
[365211919,1749535846586,-850.71923335,0.00017076,2]
[365212312,1749535878522,600.0,0.00013868,2]
[365212313,1749535880134,152.0,0.00015238,2]
[365212314,1749535880159,448.0,0.00015238,2]
[365212425,1749535997658,10000.0,0.0001705,10]
[365212426,1749536013824,395.27779606,0.00014964,2]
[365212428,1749536098323,243.29,0.00013699,2]
[365212430,1749536199958,6000.0,0.00016,3]
[365212431,1749536320638,150.0,0.00016484,7]
[365212432,1749536386307,500.0,0.00014964,2]
[365212434,1749536526593,2810.01,0.00015883,2]
[365212435,1749536531924,226.0,0.00015626,2]
[365212436,1749536538459,1360.81314546,0.000156,2]
[365212437,1749536550631,200.0,0.00015923,2]
[365212438,1749536585540,186.11,0.0001588,2]
[365212439,1749536683918,763.78,0.00013763,2]
[365212440,1749536684771,-257.73821788,0.00016027,2]
[365212441,1749536688015,-167.87838698,0.00016027,2]
[365212442,1749536693477,-338.16339514,0.00016027,2]
[365212447,1749536749186,600.0,0.00013868,2]
[365212448,1749536750783,600.0,0.00015238,2]
[365212449,1749536752026,1228.74,0.00015975,2]
[365212450,1749536753135,255.72220394,0.00014964,2]
[365212451,1749536753160,2.01601394,0.00014964,2]
[365212452,1749536758222,1397.0,0.0001587,2]
[365212453,1749536794334,1000.0,0.00015566,2]
[365212454,1749536799847,1397.0,0.00015952,2]
[365212474,1749536892855,224.0,0.00015074,2]
[365212475,1749536893141,224.0,0.00015528,2]
[365212476,1749536893415,224.0,0.00015982,3]
[365212478,1749536896159,311.16,0.00015552,2]
[365212482,1749536918566,30803.72225061,0.00013368,2]
[365212483,1749536948384,250.0,0.00015542,2]
[365212493,1749537016227,207.73578337,0.00024657,120]
[365212498,1749537031756,-2511.72927958,0.00016124,2]
[365212499,1749537031768,-239.27072042,0.00016124,2]
[365212500,1749537031777,-1222.52927958,0.00016176,2]
[365212501,1749537031789,-174.47072042,0.00016176,2]
[365212502,1749537031799,-1385.44438939,0.00016248,2]
[365212503,1749537031811,-11.55561061,0.00016248,2]
[365212504,1749537031820,-1397.0,0.00016298,2]
[365212505,1749537031829,-1200.0,0.00016331,2]
[365212507,1749537031839,-1397.0,0.00016332,2]
[365212509,1749537031848,-151.0,0.00016382,2]
[365212510,1749537031857,-300.0,0.00016426,2]
[365212511,1749537031867,-300.0,0.00016426,2]
[365212512,1749537031876,-300.0,0.00016427,2]
[365212513,1749537031886,-2068.29762416,0.00016428,2]
[365212514,1749537031897,-3978.74237584,0.00016428,2]
[365212515,1749537031907,-224.0,0.00016435,3]
[365212516,1749537031916,-500.0,0.00016437,2]
[365212517,1749537031926,-201.41077251,0.00016437,2]
[365212518,1749537031935,-374.33145533,0.00016437,2]
[365212519,1749537031945,-500.0,0.00016437,2]
[365212520,1749537031955,-532.43376154,0.00016437,2]
[365212522,1749537031964,-500.0,0.00016437,2]
[365212524,1749537031973,-500.0,0.00016437,2]
[365212526,1749537031983,-500.0,0.00016437,2]
[365212528,1749537031992,-393.73891166,0.00016437,2]
[365212529,1749537032002,-1929.941956,0.00016438,2]
[365212530,1749537032011,-2233.853385,0.00016438,2]
[365212531,1749537032020,-291.98331856,0.00016438,2]
[365212532,1749537032036,-188.01668144,0.00016438,2]
[365212533,1749537032045,-480.0,0.00016438,2]
[365212534,1749537032054,-490.0,0.00016438,2]
[365212535,1749537032064,-480.0,0.00016438,2]
[365212537,1749537032073,-480.0,0.00016438,2]
[365212539,1749537032082,-242.24988507,0.00016438,2]
[365212541,1749537032092,-490.0,0.00016438,2]
[365212543,1749537032102,-490.0,0.00016438,2]
[365212545,1749537032111,-480.0,0.00016438,2]
[365212547,1749537032121,-490.0,0.00016438,2]
[365212548,1749537032130,-490.0,0.00016438,2]
[365212549,1749537032140,-480.0,0.00016438,2]
[365212550,1749537032150,-423.11909705,0.00016438,2]
[365212551,1749537032159,-490.0,0.00016438,2]
[365212552,1749537032169,-177.12534593,0.00016438,2]
[365212553,1749537032179,-586.05704339,0.00016438,2]
[365212554,1749537032423,-480.0,0.00016438,2]
[365212555,1749537032433,-480.0,0.00016438,2]
[365212556,1749537032443,-507.11,0.00016438,2]
[365212557,1749537032455,-480.0,0.00016438,2]
[365212558,1749537032464,-490.0,0.00016438,2]
[365212559,1749537032474,-490.0,0.00016438,2]
[365212560,1749537032483,-480.0,0.00016438,2]
[365212561,1749537032493,-490.0,0.00016438,2]
[365212562,1749537032503,-480.0,0.00016438,2]
[365212563,1749537032512,-480.0,0.00016438,2]
[365212564,1749537032522,-480.0,0.00016438,2]
[365212565,1749537032534,-480.0,0.00016438,2]
[365212566,1749537032544,-480.0,0.00016438,2]
[365212567,1749537032554,-480.0,0.00016438,2]
[365212568,1749537032563,-480.0,0.00016438,2]
[365212569,1749537032573,-480.0,0.00016438,2]
[365212570,1749537032583,-528.12,0.00016438,2]
[365212571,1749537032592,-207.45,0.00016438,2]
[365212572,1749537032602,-419.50527517,0.00016438,2]
[365212573,1749537032893,-56.4825553,0.00016438,2]
[365212574,1749537032903,-490.0,0.00016438,2]
[365212575,1749537032912,-490.0,0.00016438,2]
[365212576,1749537032922,-490.0,0.00016438,2]
[365212577,1749537032931,-490.0,0.00016438,2]
[365212578,1749537032941,-490.0,0.00016438,2]
[365212579,1749537032950,-480.0,0.00016438,2]
[365212580,1749537032960,-490.0,0.00016438,2]
[365212581,1749537032969,-490.0,0.00016438,2]
[365212582,1749537032979,-480.0,0.00016438,2]
[365212583,1749537032988,-490.0,0.00016438,2]
[365212584,1749537032998,-490.0,0.00016438,2]
[365212585,1749537033008,-490.0,0.00016438,2]
[365212586,1749537033018,-490.0,0.00016438,2]
[365212587,1749537033028,-495.44486679,0.00016438,2]
[365212588,1749537033038,-490.0,0.00016438,2]
[365212589,1749537033048,-503.13883298,0.00016438,2]
[365212590,1749537033058,-476.97282068,0.00016438,2]
[365212591,1749537033068,-490.0,0.00016438,2]
[365212592,1749537033078,-490.0,0.00016438,2]